Cogmind - Beta 14 @@@ ROGUE MODE // 2024.12.06 @ 02:41:52 Player: WazdakkaGutsmek Result: Destroyed by AG-91716 with Assembled Focal Cannon Performance ------------- Evolutions (3) 1500 Regions Visited (10) 2000 Robots Destroyed (86) 430 Value Destroyed (2903) 2903 Prototype IDs (7) 140 Alien Tech Used (0) 0 Bonus (595) 595 TOTAL SCORE: 7568 Bonus ------- High Alert Combat Kills 241 Follower Combat Kills 421 Friendly Fire -67 Cogmind --------- Core Integrity 0/700 Matter 238/300 Energy 10/100 System Corruption 15% Temperature Cool (18) Movement Core (1550) Ox30 Location -7/Deep Caves Parts ------- > --- POWER (1) -------- (None) > --- PROPULSION (4) --- Enhanced Flexi-carbon Leg > --- UTILITY (6) ------ Advanced Heat Sink Huge Storage Unit Improved Shield Generator > --- WEAPON (2) ------- RU-N14's Throwing Claymores > --- INVENTORY (25) --- Improved Heat Sink Advanced Particle Charger Microactuators Hardened Light Armor Plating Hardened Medium Armor Plating Layered Medium Armor Plating Reflective Plating Improved Trap Extractor (1/6 Dirty Bomb) Gatling Laser Cooled Pulse Rifle Cooled Pulse Rifle High-powered Field Laser High-powered Field Laser Heavy Ion Cannon Neutron Cannon Advanced Assault Cannon Proton Missile Launcher Heavy Missile Launcher Datajack RU-N14's Throwing Claymores (4) Heavy Flail Peak State ------------ > --- POWER ------------ Heavy Deuterium Engine > --- PROPULSION ------- Armored Treads Medium Treads Enhanced Flexi-carbon Leg > --- UTILITY ---------- Advanced Heat Sink Huge Storage Unit Core Analyzer Advanced Particle Charger Hardened Light Armor Plating Makeshift Light Armor Plating > --- WEAPON ----------- Gatling Laser Neutron Cannon > --- INVENTORY -------- Improved Heat Sink High-capacity Battery Advanced Particle Charger Microactuators Hardened Light Armor Plating Hardened Medium Armor Plating Layered Medium Armor Plating Reflective Plating Improved Shield Generator Improved Trap Extractor Arc Projector Cooled Pulse Rifle Cooled Pulse Rifle High-powered Field Laser High-powered Field Laser Heavy Ion Cannon Advanced Assault Cannon Proton Missile Launcher Heavy Missile Launcher Datajack RU-N14's Throwing Claymores RU-N14's Throwing Claymores Heavy Flail [Rating: 62] Favorites ----------- Power Heavy Deuterium Engine Engine Heavy Deuterium Engine Propulsion Light Treads Treads Light Treads Leg VSS Leg Wheel Wheel Utility Improved Heat Sink Device Improved Heat Sink Storage Huge Storage Unit Processor Core Analyzer Hackware Hacking Suite Protection Hardened Light Armor Plating Weapon High-powered Field Laser Energy Gun High-powered Field Laser Energy Cannon Heavy Ion Cannon Ballistic Gun Assault Rifle Launcher Proton Missile Launcher Special Weapon RU-N14's Throwing Claymores Build | -11 -10 -10 -10 -9 -8 -7 -7 -7 -7 -7 ------- Run | Yrd Mat Min Exi Min Mat Fac Low Low Zio Dee Slots Evolved 6 | . . . . . 4 2 . . . . Power . | . . . . . . . . . . . Propulsion 2 | . . . . . 2 . . . . . Utility 4 | . . . . . 2 2 . . . . Weapon . | . . . . . . . . . . . Parts Attached 103 | . 4 . 3 3 13 44 10 . 12 14 Power 10 | . . . 1 . 2 5 . . 2 . Engine 10 | . . . 1 . 2 5 . . 2 . Core . | . . . . . . . . . . . Reactor . | . . . . . . . . . . . Propulsion 17 | . 2 . . . 2 10 1 . 1 1 Treads 10 | . 2 . . . 1 5 1 . 1 . Leg 4 | . . . . . 1 2 . . . 1 Wheel 3 | . . . . . . 3 . . . . Hover . | . . . . . . . . . . . Flight . | . . . . . . . . . . . Utility 34 | . 2 . 1 . 5 13 6 . 1 6 Device 15 | . . . . . 1 7 2 . . 5 Storage 5 | . 2 . 1 . 1 1 . . . . Processor 4 | . . . . . 2 2 . . . . Hackware 1 | . . . . . . 1 . . . . Protection 9 | . . . . . 1 2 4 . 1 1 Artifact . | . . . . . . . . . . . Weapon 42 | . . . 1 3 4 16 3 . 8 7 Energy Gun 21 | . . . . 2 2 11 1 . 4 1 Energy Cannon 2 | . . . . . . . 1 . . 1 Ballistic Gun 3 | . . . 1 . 1 1 . . . . Ballistic Cannon . | . . . . . . . . . . . Launcher 10 | . . . . 1 1 4 1 . 2 1 Special Weapon 6 | . . . . . . . . . 2 4 Impact Weapon . | . . . . . . . . . . . Slashing Weapon . | . . . . . . . . . . . Piercing Weapon . | . . . . . . . . . . . Special Melee Weapon . | . . . . . . . . . . . Unidentified Prototypes 7 | . . . . . . 3 . . 1 3 Corrupted Parts 2 | . . . . . . . . . 1 1 System Corruption 15 | . . . . . . . . . 5 10 Parts Lost 25 | . . . . 1 1 13 1 . 1 8 Power 3 | . . . . . 1 1 . . . 1 Propulsion 10 | . . . . 1 . 5 . . 1 3 Utility 9 | . . . . . . 5 1 . . 3 Weapon 3 | . . . . . . 2 . . . 1 Highest Loss Streak 7 | . . . . 1 1 4 1 . 1 7 To Critical Strikes . | . . . . . . . . . . . Average Slot Usage (%) 83 | . 97 55 47 73 65 82 83 92 91 86 Engine 7 | . 14 6 7 14 3 6 7 7 6 6 Treads 19 | . 18 28 28 19 10 15 15 23 22 17 Leg 2 | . 9 . . . 5 5 . . . 5 Wheel 1 | . . . . . . 6 . . . . Device 7 | . . . . . 1 8 8 7 7 13 Storage 7 | . 25 6 2 14 8 7 7 7 7 7 Processor 7 | . . . . . 11 8 12 7 7 6 Protection 13 | . . . . . 5 4 14 23 23 16 Energy Gun 10 | . 28 13 . 10 8 12 11 7 11 8 Energy Cannon 1 | . . . . . . . 2 7 2 . Ballistic Gun 1 | . . . 7 14 9 1 . . . . Peak Build Rating 62 | . 7 6 5 6 21 42 43 44 50 62 Average Rating 36 | . 6 3 3 5 13 30 39 43 45 52 On Entrance 20 | 6 6 6 2 5 5 21 38 43 44 50 Naked Turns . | . . . . . . . . . . . Heaviest Build 125 | 14 31 29 8 9 32 111 125 125 125 118 Greatest Support 83 | 20 40 40 40 40 43 83 68 68 68 68 Greatest Overweight (x) 10 | . . . 1 . 1 10 2 1 2 4 Average Overweight (x) . | . . . . . . 1 1 1 1 1 Largest Inventory Capacity 25 | . 15 15 5 5 10 25 25 25 25 25 Average Capacity 19 | . 12 9 5 5 7 13 25 25 25 25 Most Carried 24 | . 8 5 5 4 6 18 17 19 24 24 Average Carried 15 | . 5 5 3 3 4 9 15 17 21 23 Final Capacity 25 | 8 15 5 5 5 10 25 25 25 25 25 Final Carried 23 | 6 5 5 3 3 6 15 16 19 23 21 Class Distribution -------------------- 78% | Mutant 21% | Scavenger-Mutant Dominant Class ---------------- Mutant | -10/Materials Mutant | -10/Mines Mutant | -10/Exiles Mutant | -9/Mines Mutant | -8/Materials Mutant | -7/Factory Mutant | -7/Lower Caves Mutant | -7/Lower Caves Mutant | -7/Zion Scavenger-Mutant | -7/Deep Caves Resources | -11 -10 -10 -10 -9 -8 -7 -7 -7 -7 -7 ----------- Run | Yrd Mat Min Exi Min Mat Fac Low Low Zio Dee Matter Collected 1845 | 173 25 42 20 132 193 693 212 10 161 184 Remotely . | . . . . . . . . . . . Salvage Created 2942 | . 25 . . 166 298 1706 208 139 185 215 Parts 155 | . 2 . . 15 15 94 2 9 12 6 Haulers Intercepted 4 | . . . . . . 4 . . . . Recyclers Shooed 3 | . . . . 1 . 2 . . . . Parts Field Recycled . | . . . . . . . . . . . Retrieved Matter . | . . . . . . . . . . . Parts Self-Destructed 20 | . . . . . . . 7 9 4 . Prevented 1 | . . . . . . . . 1 . . Kills | -11 -10 -10 -10 -9 -8 -7 -7 -7 -7 -7 ------- Run | Yrd Mat Min Exi Min Mat Fac Low Low Zio Dee Combat Hostiles Destroyed 69 | . . . . 4 8 34 9 3 3 8 Guns 41 | . . . . 1 7 24 1 2 2 4 Cannons 6 | . . . . . . . 2 1 1 2 AOE 21 | . . . . 3 1 9 6 . . 2 Classes Destroyed 17 | . 1 . . 3 2 5 2 . 2 2 Worker 6 | . . . . 2 . 4 . . . . Builder 2 | . . . . . 2 . . . . . Tunneler 2 | . . . . 1 . 1 . . . . Hauler 4 | . . . . . . 4 . . . . Recycler 3 | . . . . . . 3 . . . . Watcher 1 | . 1 . . . . . . . . . Swarmer 13 | . . . . . . 13 . . . . Grunt 28 | . . . . 4 7 13 2 2 . . Brawler 4 | . . . . . . . 4 . . . Duelist 2 | . . . . . . . 2 . . . Sentry 6 | . . . . . 1 3 1 1 . . Hunter 1 | . . . . . . 1 . . . . Programmer 4 | . . . . . . 4 . . . . Zionite 4 | . . . . . . . . . 4 . Z-Light 3 | . . . . . . . . . . 3 Assembled 5 | . . . . . . . . . . 5 Mutant 2 | . . . . . . . . . 2 . Best Kill Streak 9 | . 1 . . 6 4 9 9 2 4 3 Combat Bots Only 9 | . . . . 3 4 6 9 2 1 3 Max Kills in Single Turn 4 | . 1 . . 4 1 4 2 1 2 2 Gunslinging 1 | . . . . . . 1 . . . 1 Exploded 3 | . . . . 1 1 3 2 . . 1 Melee . | . . . . . . . . . . . Uniques/NPCs Destroyed 1 | . . . . . . . . . 1 . Imprinter (-7/Zion) Combat | -11 -10 -10 -10 -9 -8 -7 -7 -7 -7 -7 -------- Run | Yrd Mat Min Exi Min Mat Fac Low Low Zio Dee Hostile Shots Fired 436 | . . 7 . 17 35 229 29 34 30 55 Missed 124 | . . . . 2 12 67 11 10 11 11 Damage Taken 5264 | . . 256 . 199 340 1910 485 215 298 1561 Core 876 | . . 40 . 22 110 283 . 10 47 364 Absorbed by Shields 325 | . . . . . 33 219 . . . 73 Core Remaining (%) 85 | 100 . . . 75 80 . . . . . Volleys Fired 217 | . 1 . . 15 26 111 19 7 18 20 Largest 2 | . 2 . . 2 2 2 2 2 2 2 Hottest 150 | . 90 . . 60 88 140 145 145 150 150 Shots Fired 383 | . 2 . . 24 52 207 35 14 27 22 Gun 318 | . 2 . . 21 47 198 13 7 17 13 Cannon 23 | . . . . . . . 16 7 . . Launcher 33 | . . . . 3 5 9 6 . 8 2 Special 9 | . . . . . . . . . 2 7 Kinetic 70 | . . . . 15 26 29 . . . . Thermal 231 | . 1 . . 6 21 133 29 14 17 10 Explosive 32 | . . . . 3 5 9 6 . 2 7 Electromagnetic 50 | . 1 . . . . 36 . . 8 5 Robot Hit Streak 21 | . 1 . . 4 21 16 10 8 9 8 Robot Miss Streak 6 | . 1 . . 2 1 6 1 2 2 4 Penetration Max . | . . . . . . . . . . . Secondary Targets 5 | . . . . . 1 2 . . 1 1 Max Gunslinging Chain 1 | . . . . . 1 1 . . 1 1 Shots Hit Robots 252 | . 1 . . 12 34 151 18 8 15 13 Core Hits 186 | . 1 . . 11 22 86 28 9 14 15 Critical Kills . | . . . . . . . . . . . Critical Parts Destroyed 1 | . . . . 1 . . . . . . Critical Strikes 16 | . 1 . . 1 2 11 . . . 1 Burn 14 | . 1 . . . 2 11 . . . . Destroy 1 | . . . . 1 . . . . . . Sever 1 | . . . . . . . . . . 1 Melee Attacks . | . . . . . . . . . . . Impact . | . . . . . . . . . . . Slashing . | . . . . . . . . . . . Piercing . | . . . . . . . . . . . Sneak Attacks . | . . . . . . . . . . . Combat Hostiles . | . . . . . . . . . . . Follow-up Attacks . | . . . . . . . . . . . Damage Inflicted 8944 | . 13 . . 441 859 3910 1682 213 736 1090 Guns 4317 | . 13 . . 102 573 2909 119 166 273 162 Cannons 274 | . . . . . . . 248 26 . . Explosions 4039 | . . . . 332 286 997 1315 . 388 721 Melee . | . . . . . . . . . . . Ramming 32 | . . . . 7 . 4 . 21 . . Kinetic 784 | . . . . 82 271 431 . . . . Thermal 3535 | . 13 . . 20 302 2233 367 192 273 135 Explosive 3855 | . . . . 332 286 936 1315 . 332 654 Electromagnetic 456 | . . . . . . 306 . . 56 94 Impact . | . . . . . . . . . . . Slashing 282 | . . . . . . . . . 75 207 Piercing . | . . . . . . . . . . . Highest Corruption 15 | . . . . . . 4 2 2 5 15 Average Corruption 5 | . . . . . . 2 2 2 3 13 Corruption Purged 4 | . . . . . . 4 . . . . Corruption Blocked . | . . . . . . . . . . . Effects 96 | . . . . . . 19 18 3 8 48 Message Errors 24 | . . . . . . 5 3 . 4 12 Matter Fused 27 | . . . . . . 5 3 2 3 14 Heat Flow Errors 12 | . . . . . . 3 4 . . 5 Energy Discharges 9 | . . . . . . 1 2 1 . 5 Parts Rejected 1 | . . . . . . 1 . . . . Parts Fused 1 | . . . . . . . . . . 1 Data Loss (minor) 9 | . . . . . . 2 4 . . 3 Data Loss (major) 3 | . . . . . . 1 . . . 2 Alerts 6 | . . . . . . 1 . . 1 4 Weapon Failures 4 | . . . . . . . 2 . . 2 Overload Shots 1 | . . . . . . . . . 1 . Overflow Damage 91 | . . . . . . 16 18 . 44 13 Projectiles 3 | . . . . . . . . . 3 . Explosions 88 | . . . . . . 16 18 . 41 13 Melee . | . . . . . . . . . . . Knockbacks 1 | . . . . 1 . . . . . . Impact 1 | . . . . 1 . . . . . . Kinetic . | . . . . . . . . . . . Secondary . | . . . . . . . . . . . Self-Inflicted Damage 18 | . . . . . . . 7 . . 11 Shots 2 | . . . . . . . 1 . . 1 Rammed 7 | . . . . 1 . 2 . 4 . . Targets Rammed 7 | . . . . 1 . 2 . 4 . . Kicked . | . . . . . . . . . . . Crushed . | . . . . . . . . . . . Highest Temperature 466 | . 30 . . 42 188 466 260 196 190 397 Average Temperature 84 | . 18 . . 18 93 88 57 88 68 128 Received Heat Transfer 1175 | . . . . 111 165 487 63 81 63 205 Effects 3 | . . . . . . 3 . . . . Energy Bleed 2 | . . . . . . 2 . . . . Short Circuit 1 | . . . . . . 1 . . . . Siege Activations . | . . . . . . . . . . . Robots Corrupted . | . . . . . . . . . . . Combat Hostiles . | . . . . . . . . . . . Parts Fried 3 | . . . . . . 3 . . . . Impact Corruptions . | . . . . . . . . . . . Robots Melted 1 | . . . . . . 1 . . . . Combat Hostiles 1 | . . . . . . 1 . . . . Parts Melted 17 | . . . . . 3 13 . 1 . . Heat Transferred 7201 | . 111 . . 50 851 4416 583 412 516 262 Parts Sabotaged . | . . . . . . . . . . . Parts Stolen . | . . . . . . . . . . . Parts Stripped . | . . . . . . . . . . . Power Chain Reactions 4 | . . . . . . 1 . . 3 . Alert | -11 -10 -10 -10 -9 -8 -7 -7 -7 -7 -7 ------- Run | Yrd Mat Min Exi Min Mat Fac Low Low Zio Dee Peak Influence 748 | . 7 32 . 124 428 748 . . . . Initial 103 | . . 2 . . 39 103 . . . . Average 302 | . 2 14 . 64 171 429 . . . . Maximum Alert Level 3 | . . . . . 2 3 . . . . Low Security (%) 42 | . 100 100 . 100 64 16 . . . . Level 1 23 | . . . . . 28 31 . . . . Level 2 26 | . . . . . 6 39 . . . . Level 3 7 | . . . . . . 11 . . . . Level 4 . | . . . . . . . . . . . Level 5 . | . . . . . . . . . . . High Security . | . . . . . . . . . . . Max Security . | . . . . . . . . . . . Squads Dispatched 16 | . . . . . 4 12 . . . . Investigation 4 | . . . . . 1 3 . . . . Extermination 5 | . . . . . . 5 . . . . Reinforcement 7 | . . . . . 3 4 . . . . Assault . | . . . . . . . . . . . Garrison . | . . . . . . . . . . . Intercept . | . . . . . . . . . . . Searches Triggered . | . . . . . . . . . . . Construction Impeded 2 | . . . . . 2 . . . . . Haulers Reinforced 3 | . . . . . . 3 . . . . Active Scanning Responses . | . . . . . . . . . . . Cargo Convoy Interrupts . | . . . . . . . . . . . Stealth | -11 -10 -10 -10 -9 -8 -7 -7 -7 -7 -7 --------- Run | Yrd Mat Min Exi Min Mat Fac Low Low Zio Dee Distress Signals . | . . . . . . . . . . . Communications Jammed . | . . . . . . . . . . . Distress Signals . | . . . . . . . . . . . Times Spotted 112 | . 1 2 . 8 12 42 13 3 21 10 Peak Tracking Total 9 | . 1 2 . 3 5 4 9 2 5 3 Tactical Retreats 5 | . . 1 . . . 4 . . . . Traps | -11 -10 -10 -10 -9 -8 -7 -7 -7 -7 -7 ------- Run | Yrd Mat Min Exi Min Mat Fac Low Low Zio Dee Traps Triggered 3 | . . . . . 1 2 . . . . Indirectly . | . . . . . . . . . . . Trap Hack Attempts . | . . . . . . . . . . . Triggered . | . . . . . . . . . . . Disarmed . | . . . . . . . . . . . Reprogrammed . | . . . . . . . . . . . Reused . | . . . . . . . . . . . Traps Extracted 2 | . . . . . . . 2 . . . Installed . | . . . . . . . . . . . Triggered 4 | . . . . . . . . 4 . . Most Traps Carried 2 | . . . . . . . 2 1 1 1 Machines | -11 -10 -10 -10 -9 -8 -7 -7 -7 -7 -7 ---------- Run | Yrd Mat Min Exi Min Mat Fac Low Low Zio Dee Machines Disabled 8 | . . . . . . . 2 . 4 2 Max in Single Turn 2 | . . . . . . . 2 . 1 1 Garrison Access 1 | . . . . . . 1 . . . . Machines Repaired . | . . . . . . . . . . . Machines Dismantled . | . . . . . . . . . . . Machines Sabotaged . | . . . . . . . . . . . Overloaded Fab Kills . | . . . . . . . . . . . Hacking | -11 -10 -10 -10 -9 -8 -7 -7 -7 -7 -7 --------- Run | Yrd Mat Min Exi Min Mat Fac Low Low Zio Dee Machines Accessed 9 | . . . . . 2 7 . . . . Terminals 8 | . . . . . 2 6 . . . . Fabricators . | . . . . . . . . . . . Repair Stations . | . . . . . . . . . . . Recycling Units . | . . . . . . . . . . . Scanalyzers . | . . . . . . . . . . . Garrison Access 1 | . . . . . . 1 . . . . Total Hacks 22 | . . . . . 6 16 . . . . Successful 9 | . . . . . 3 6 . . . . Failed 13 | . . . . . 3 10 . . . . Catastrophic 3 | . . . . . . 3 . . . . Database Lockouts . | . . . . . . . . . . . Manual 17 | . . . . . 6 10 . . 1 . Terminals 19 | . . . . . 6 13 . . . . Fabricators . | . . . . . . . . . . . Repair Stations . | . . . . . . . . . . . Recycling Units . | . . . . . . . . . . . Scanalyzers . | . . . . . . . . . . . Garrison Access 3 | . . . . . . 3 . . . . Terminal Hacks 2 | . . . . . . 2 . . . . Part Schematic 1 | . . . . . . 1 . . . . Terminal Index 1 | . . . . . . 1 . . . . Fabricator Hacks . | . . . . . . . . . . . Repair Station Hacks . | . . . . . . . . . . . Recycling Unit Hacks . | . . . . . . . . . . . Scanalyzer . | . . . . . . . . . . . Garrison Access Hacks . | . . . . . . . . . . . Unauthorized Hacks 7 | . . . . . 3 4 . . . . Terminals 6 | . . . . . 3 3 . . . . Botnet 5 | . . . . . 2 3 . . . . Skim 1 | . . . . . 1 . . . . . Fabricators . | . . . . . . . . . . . Repair Stations . | . . . . . . . . . . . Recycling Units . | . . . . . . . . . . . Scanalyzers . | . . . . . . . . . . . Garrison Access 1 | . . . . . . 1 . . . . Jam 1 | . . . . . . 1 . . . . Data Cores Recovered . | . . . . . . . . . . . Used . | . . . . . . . . . . . Hacking Detections 9 | . . . . . 2 7 . . . . Full Trace Events 1 | . . . . . . 1 . . . . Feedback Events . | . . . . . . . . . . . Feedback Blocked . | . . . . . . . . . . . Robot Schematics Acquired 3 | . . . . . . . . . 3 . Robots Built . | . . . . . . . . . . . Authchips . | . . . . . . . . . . . Time . | . . . . . . . . . . . Total Robot Build Rating . | . . . . . . . . . . . Part Schematics Acquired 14 | . . . . . . 1 . . 13 . Parts Built . | . . . . . . . . . . . Authchips . | . . . . . . . . . . . Time . | . . . . . . . . . . . Total Part Build Rating . | . . . . . . . . . . . Parts Repaired . | . . . . . . . . . . . Time . | . . . . . . . . . . . Parts Recycled . | . . . . . . . . . . . Recycled Matter . | . . . . . . . . . . . Retrieved Matter . | . . . . . . . . . . . Retrieved Components . | . . . . . . . . . . . Parts Scanalyzed . | . . . . . . . . . . . Part Schematics Acquired . | . . . . . . . . . . . Parts Damaged . | . . . . . . . . . . . Bothacking | -11 -10 -10 -10 -9 -8 -7 -7 -7 -7 -7 ------------ Run | Yrd Mat Min Exi Min Mat Fac Low Low Zio Dee Used RIF Installer . | . . . . . . . . . . . Robots Hacked . | . . . . . . . . . . . Non-combat . | . . . . . . . . . . . Combat . | . . . . . . . . . . . Robot Hacks Applied . | . . . . . . . . . . . Relay Couplers Released . | . . . . . . . . . . . Fabnet Peak Effective % . | . . . . . . . . . . . Robots Rewired 2 | . . . . . . . 2 . . . Allies Hacked . | . . . . . . . . . . . Hacks Repelled . | . . . . . . . . . . . Allies | -11 -10 -10 -10 -9 -8 -7 -7 -7 -7 -7 -------- Run | Yrd Mat Min Exi Min Mat Fac Low Low Zio Dee Total Allies 9 | . . . . 3 . . 2 . 4 . Largest Group 4 | . . . . 3 2 . 2 1 4 1 Highest-Rated Group 254 | . . . . 40 32 . 62 30 254 96 Highest-Rated Ally 96 | . . . . 16 16 . 32 30 96 96 Total Orders . | . . . . . . . . . . . Ally Attacks 157 | . . . . 18 43 . 17 . 65 14 Total Damage 4140 | . . . . 218 480 . 646 . 2285 511 Kills 40 | . . . . 4 5 . 5 . 20 6 Allies Corrupted 1 | . . . . . . . . . 1 . Allies Melted . | . . . . . . . . . . . Intel | -11 -10 -10 -10 -9 -8 -7 -7 -7 -7 -7 ------- Run | Yrd Mat Min Exi Min Mat Fac Low Low Zio Dee Robot Analysis Total . | . . . . . . . . . . . Derelict Logs Recovered 2 | . . . . 1 . . 1 . . . Drone Launches . | . . . . . . . . . . . Drone Recoveries . | . . . . . . . . . . . Exploration | -11 -10 -10 -10 -9 -8 -7 -7 -7 -7 -7 ------------- Run | Yrd Mat Min Exi Min Mat Fac Low Low Zio Dee Turns Passed 10550 | . 120 289 254 504 402 2297 1590 491 3377 1226 Spaces Moved 4672 | 1 76 231 348 225 172 1229 456 188 1360 386 Core 482 | . . 165 317 . . . . . . . Treads 3417 | . 44 66 31 225 172 491 456 188 1360 384 Legs 168 | 1 32 . . . . 133 . . . 2 Wheels 605 | . . . . . . 605 . . . . Hover . | . . . . . . . . . . . Flight . | . . . . . . . . . . . Fastest Speed 50 | 120 120 50 50 160 160 86 240 240 240 243 Average Speed 197 | 120 143 81 72 160 173 144 307 240 242 287 Slowest Speed 400 | 120 160 160 160 160 240 330 320 240 320 400 Overloaded Moves . | . . . . . . . . . . . Propulsion Burnouts . | . . . . . . . . . . . Robots Hopped . | . . . . . . . . . . . Cave-ins Triggered . | . . . . . . . . . . . Exploration Rate (%) 44 | 1 24 67 64 64 19 26 49 34 85 55 Regions Visited 10 Branch Regions 7 Pre-discovered Areas 2 | . . . . 1 . . . . 1 . Known Exits Taken . | . . . . . . . . . . . Unknown Exits Taken 10 | 1 1 1 1 1 1 1 1 1 1 . Scrap Searched 10 | . . 1 . 2 . . 2 2 3 . Spaces Dug 3 | . . . . . . . 3 . . . Terrain Destroyed 240 | . . . . 26 36 79 53 1 5 40 Melee . | . . . . . . . . . . . Projectile 5 | . . . . . . . 3 1 . 1 AOE 235 | . . . . 26 36 79 50 . 5 39 Terrain Rammed . | . . . . . . . . . . . Walls Destroyed . | . . . . . . . . . . . Machines Disabled . | . . . . . . . . . . . Actions | -11 -10 -10 -10 -9 -8 -7 -7 -7 -7 -7 --------- Run | Yrd Mat Min Exi Min Mat Fac Low Low Zio Dee Total 5568 | . 88 333 350 344 221 1543 602 208 1404 475 Wait 439 | . . 95 . 100 5 91 89 7 5 47 Move 4662 | . 75 230 347 224 171 1228 455 187 1359 386 Hop . | . . . . . . . . . . . Pick Up 48 | . 2 . . . 2 32 2 3 6 1 Fast Attach 38 | . 1 . 1 1 8 19 2 . 2 4 Attach 22 | . 2 . 2 1 . 7 4 . 1 5 Detach 8 | . 1 . . 1 . 1 2 . 1 2 Swap 43 | . 1 . . 1 5 18 4 . 9 5 Drop 56 | . 5 4 . . 4 34 1 . 3 5 Fire 217 | . 1 . . 15 26 111 19 7 18 20 Melee . | . . . . . . . . . . . Ram . | . . . . . . . . . . . Kick . | . . . . . . . . . . . Crush 7 | . . . . 1 . 2 . 4 . . Escape Stasis . | . . . . . . . . . . . Rewire 28 | . . 4 . . . . 24 . . . Trap . | . . . . . . . . . . . Miscellaneous . | . . . . . . . . . . . Route ------- -11/Scrapyard -10/Materials -10/Mines (discovered 3 exits: [*Mat x2] / [*Exi]) -10/Exiles -9/Mines -8/Materials -7/Factory -7/Lower Caves -7/Lower Caves -7/Zion (discovered 2 exits: [*Dee] / [*Pro]) -7/Deep Caves History --------- Turn | Location | Event 1 | -11/Scrapyard | Discovered new exit (range 0) 1 | -11/Scrapyard | Entered Materials 92 | -10/Materials | Discovered new exit (range 13) 93 | -10/Materials | Met 8R-AWN 121 | -10/Materials | Entered Mines 122 | -10/Mines | Followed 8R-AWN into the Mines 147 | -10/Mines | Discovered new exit (range 12) 169 | -10/Mines | Discovered new exit (range 9) 236 | -10/Mines | Assembled infested the area 301 | -10/Mines | Build established: Mutant 408 | -10/Mines | Discovered new exit (range 5) 410 | -10/Mines | Entered Exiles 424 | -10/Exiles | Welcomed by 8R-AWN 432 | -10/Exiles | Met EX-HEX 467 | -10/Exiles | Met EX-BIN 508 | -10/Exiles | Learned about 8R-AWN's background 560 | -10/Exiles | Met EX-DEC 645 | -10/Exiles | Discovered new exit (range 14) 664 | -10/Exiles | Entered Mines 668 | -9/Mines | Assisted by bots powering up and referring to "LRC-V3" 721 | -9/Mines | Met a Derelict bent on vengeance 927 | -9/Mines | Learned location of Storage (-7) 1033 | -9/Mines | Excavation squad dispatched 1033 | -9/Mines | A large section of the Mines collapsed 1148 | -9/Mines | Discovered new exit (range 8) 1168 | -9/Mines | Entered Materials 1168 | -8/Materials | Accompanied by 2 allies 1168 | -8/Materials | Evolved 4 slots: Propulsion x2, Utility x2 1496 | -8/Materials | Discovered new exit (range 12) 1570 | -8/Materials | Entered Factory 1570 | -7/Factory | Evolved 2 slots: Utility x2 1958 | -7/Factory | Lost 3 parts (1n1u1w) 2806 | -7/Factory | Lost 4 parts (1p2n1u) 3027 | -7/Factory | Build established: Scavenger-Mutant 3543 | -7/Factory | Discovered new exit (range 4) 3867 | -7/Factory | Entered Lower Caves 3959 | -7/Lower Caves | Build established: Mutant 4104 | -7/Lower Caves | Learned 4 Factory zone layouts 4936 | -7/Lower Caves | Attracted the attention of an 0b10 outpost 4985 | -7/Lower Caves | Destroyed 9 combat bots 5249 | -7/Lower Caves | Spotted B-75 Beast 5284 | -7/Lower Caves | Allies destroyed B-75 Beast 5423 | -7/Lower Caves | Discovered new exit (range 15) 5457 | -7/Lower Caves | Entered another Lower Caves area 5457 | -7/Lower Caves | Accompanied by 1 ally 5559 | -7/Lower Caves | Attracted the attention of an 0b10 checkpoint 5912 | -7/Lower Caves | Discovered new exit (range 16) 5948 | -7/Lower Caves | Entered Zion 6124 | -7/Zion | System corruption cleaned by Quarantine Array 6757 | -7/Zion | Gained Derelict followers 6820 | -7/Zion | Given A8's code to call for help 6997 | -7/Zion | Learned location of Armory (-3) 7256 | -7/Zion | Found Prototype Special Weapon 7260 | -7/Zion | Found Prototype Special Weapon 7263 | -7/Zion | Found Prototype Special Weapon 7267 | -7/Zion | Found Prototype Special Weapon 7284 | -7/Zion | Identified RU-N14's Throwing Claymores (x4) 8243 | -7/Zion | Discovered new exit (range 8) 8749 | -7/Zion | Enhanced Grunt warped into view, answering call for help 8753 | -7/Zion | Enhanced Grunt warped into view, answering call for help 8984 | -7/Zion | Warned about damaging Zion machinery 8989 | -7/Zion | Attacked by Zionites 8989 | -7/Zion | Caused signficant damage to Zion machinery 8989 | -7/Zion | Attacked by Zionites 9018 | -7/Zion | Destroyed Imprinter 9320 | -7/Zion | Discovered new exit (range 3) 9320 | -7/Zion | Saw the warning signs outside the Deep Caves entrance 9325 | -7/Zion | Entered Deep Caves 9325 | -7/Deep Caves | Accompanied by 1 ally 9506 | -7/Deep Caves | Build established: Scavenger-Mutant 9523 | -7/Deep Caves | Z-Facility disabled 9553 | -7/Deep Caves | System corruption reached 10% 9797 | -7/Deep Caves | Core integrity fell below 50% 10492 | -7/Deep Caves | Spotted AG-91716 10542 | -7/Deep Caves | Core integrity fell below 20% 10551 | -7/Deep Caves | Destroyed by AG-91716 with Assembled Focal Cannon Last Messages --------------- 10516_ System corrupted: Proton Missile Launcher failed to launch. 10516_ Destroyed Prototype Device. 10517_ Extracted 22 energy. 10517_ AG-91716 GOLEM Unit beginning Prototype Device integration. 10518_ AG-91716 Prototype Device integration complete. 10519_ Extracted 114 energy. 10523_ System corrupted: Component data lost. 10523_ System corrupted: Proton Missile Launcher failed to launch. 10525_ Arc Projector destroyed. 10525_ Hvy. Deuterium Engine destroyed. 10528_ AG-91716 misfires. 10538_ System corrupted: Matter fused (-7). 10538_ Adv. Particle Charger destroyed. 10548_ Hrd. Light Armor Plating destroyed. 10551_ Arm. Treads destroyed. 10551_ Mak. Light Armor Plating destroyed. Map ----- +----------------------------------------------------+ | ???????????????????????????????????????????????? | | ?????????????????????????????????????????????# ? | | ?????????????????????????????????? ?????????? ? | | ????????????????????????? #???? ???????? | | ??????????????????????? ???? ??????## | | ???????????????????? ????? ?????## | | ?????????????????? #???? ???### | | ???????????????? #????# ??## | | ??????????????? #????# #?## | | ?????????????? #????# ### | | ???????????? l #????# # | | ???????????? * ** * ##??## #?# #? | | ??????????? *** #?## ### ## | | ??????????? #?# ## | | ?????????? #??# " | | ?????????? ##### | | ?????????? * | | ?????????"" * * | | ????????? # | | ?????????" ######### # | | ????????" #???????## | | ?????????" "#????????# | | ????????" G# "#????????## | | ????????" ##"# ## ## ###?????????###### | | ?????????"" ?????????#; ;###????????????????#### | | ??????????????????????#@;#?????????????????????? | | ??????????????????????####?????????????????????? | | | | | | | | | | | | | | | | | | | | | | | | | | | | | | | | | | | | | | | | | | | | | | | +----------------------------------------------------+ Best States ------------- Heat Dissipation 62 Energy Generation 18 Energy Capacity 400 Matter Stores 450 Matter Capacity 450 Sight Range 16 Terrain Scan Density 10 Armor Coverage 600 Evasion (%) 55 Targeting Accuracy 16 Core Analysis 6 Recoil Reduction 4 Particle Charging 25 Offensive Hacking 10 Trap Extractor Capacity 6 Item Schematics ----------------- Gauss Cannon | -7/Factory | Hacked Hvy. Laser | -7/Zion | Archive Adv. Heat Sink | -7/Zion | Archive Imp. Deuterium Engine | -7/Zion | Archive Imp. Target Analyzer | -7/Zion | Archive Weapon Cycler | -7/Zion | Archive Arc Projector | -7/Zion | Archive Arm. Leg | -7/Zion | Archive Hvy. Shock Bomb Launcher | -7/Zion | Archive Wave Gun | -7/Zion | Archive Microactuators | -7/Zion | Archive Hvy. Flak Cannon | -7/Zion | Archive Matter Compressor | -7/Zion | Archive Flak Gun | -7/Zion | Archive Robot Schematics ------------------ K-01 Serf | -7/Zion | Archive X-57 Shotgunner | -7/Zion | Archive B-36 Bruiser | -7/Zion | Archive Fabricated ------------ Nothing Alien Tech Used ----------------- None Achievements -------------- None Challenges ------------ None Game ------ Seed SeismicVariableBarrier Manual? 0 Play Time 00:58:12 Cumulative 197.8 hours Start 2024.12.06 @ 01:23:32 End 2024.12.06 @ 02:41:52 Sessions 1 Manual Loads 0 Difficulty Rogue Special Mode None Game No. 173 Rogue 154 Adventurer 16 Explorer 3 Win Type - Total 17 Types 8/0/8/1/0/0/0/0/0 Lore% 52 Gallery% 75 Achievement% 69 Wizard Run 0 Options --------- Layout 2 ASCII 0 Keyboard 0 Movement Numpad Keybinds 1 Fullscreen 2 Font 24/Terminus Map View 50x44 Zoom Use 0% Tactical HUD 1 Map Filters NONE Filters NONE Steam 1 RUN: 8be03465-a12e-400c-a74a-e3c105fc8111